bitfinex-derivatives/quotes_ETHF0:USTF0_20250626
["timestamp","ask_amount","ask_price","bid_price","bid_amount"]
[1750928956918,0.80583,2480.6,2480.4,9.81187]
[1750928957114,0.80588,2480.4,2480.3,1.4267]
[1750928957312,4.01368,2480.4,2480.3,10.4327]
[1750928957514,4.01368,2480.4,2480.3,1.4267]
[1750928957822,4.01368,2480.4,2480.3,10.4327]
[1750928958116,3.2078,2480.4,2480.3,2.23261]
[1750928958322,4.01368,2480.4,2480.3,10.4327]
[1750928959018,4.01368,2480.4,2480.3,9.006]
[1750928959822,4.01368,2480.4,2479.9,9.006]
[1750928959823,2.01487,2480.2,2479.9,9.006]
[1750928960121,4.01381,2480.0,2479.9,9.006]
[1750928960722,0.80611,2479.7,2479.6,1.4123]
[1750928960913,4.01391,2479.7,2479.6,10.4183]
[1750928961117,3.2078,2479.7,2479.6,11.22444]
[1750928961321,4.01391,2479.7,2479.6,10.4193]
[1750928961521,4.01391,2479.7,2479.6,11.22544]
[1750928961718,4.01391,2479.7,2479.6,1.4123]
[1750928961920,4.01391,2479.7,2479.6,39.0183]
[1750928962122,4.01391,2479.7,2479.6,1.4123]
[1750928962522,4.01391,2479.7,2479.6,11.22544]
[1750928962724,4.01391,2479.7,2479.6,10.4193]
[1750928962925,0.80617,2479.5,2479.4,46.445]
[1750928963126,0.80617,2479.5,2479.4,84.012]
[1750928963328,0.80617,2479.5,2479.4,46.445]
[1750928963623,5.2231,2479.7,2479.1,1.3087]
[1750928963828,3.2078,2479.6,2479.2,38.34325]
[1750928964128,0.80627,2479.2,2479.1,1.3087]
[1750928964331,3.2078,2479.3,2478.5,3.2078]
[1750928964529,0.80638,2478.9,2478.8,0.80638]
[1750928964727,0.8064,2478.8,2478.7,1.3209]
[1750928965530,0.8064,2478.8,2478.7,29.7879]
[1750928965826,5.22366,2479.0,2478.2,10.94802533]
[1750928965827,2.01592,2478.9,2478.2,3.2078]
[1750928966023,4.01431,2478.5,2478.4,0.80653]
[1750928966223,3.2078,2478.5,2477.9,3.2078]
[1750928966424,0.80663,2478.1,2478.0,0.80664]
[1750928966625,0.80663,2478.1,2478.0,37.94164]
[1750928966823,0.80663,2478.1,2478.0,0.80664]
[1750928967024,0.80663,2478.1,2478.0,29.23464]
[1750928967224,3.2078,2478.2,2477.8,29.22471]
[1750928967225,0.80669,2477.9,2477.8,29.22471]
[1750928967418,4.01449,2477.9,2477.8,30.63661]
[1750928967623,4.01449,2477.9,2477.8,1.4119]
[1750928967928,3.2078,2477.9,2477.8,2.21862]
[1750928968228,3.2078,2477.9,2477.8,0.80673]
[1750928968624,3.2078,2477.9,2477.8,2.21863]
[1750928968819,0.80641,2478.8,2477.9,2.01673]
[1750928969026,1.07477092,2478.7,2478.3,1.2278]
[1750928969222,3.2078,2478.9,2478.3,1.2278]
[1750928969425,3.2078,2478.9,2478.0,2.01659]
[1750928969426,4.01427,2478.6,2478.4,38.4759]
[1750928969625,3.2078,2478.6,2478.5,0.8065]
[1750928969821,4.28548691,2478.6,2478.5,0.8065]
[1750928970742,3.2078,2478.9,2478.8,0.8064]
[1750928970930,4.28550321,2478.9,2478.8,0.8064]
[1750928972438,1.07770321,2478.9,2478.8,37.8164]
[1750928972641,1.07770321,2478.9,2478.8,0.8064]
[1750928973034,1.88407321,2478.9,2478.8,0.8064]
[1750928973233,1.07770321,2478.9,2478.8,0.8064]
[1750928974235,1.88407321,2478.9,2478.8,0.8064]
[1750928974432,1.07770321,2478.9,2478.8,0.8064]
[1750928974834,1.07770321,2478.9,2478.8,2.2169]
[1750928975544,1.07770321,2478.9,2478.3,49.6758]
[1750928975745,1.07900452,2478.8,2478.6,8.711]
[1750928975943,3.2078,2479.0,2478.9,0.80637]
[1750928976136,4.28657196,2479.0,2478.5,36.865]
[1750928976443,3.2078,2478.7,2478.6,2.24056]
[1750928976741,4.28657196,2478.7,2478.6,39.08456]
[1750928977144,3.2078,2478.7,2478.6,44.08456]
[1750928977336,4.01414,2479.0,2478.9,0.80637]
[1750928977537,5.09256431,2479.0,2478.9,0.80637]
[1750928977732,0.80643,2478.7,2478.6,38.2651]
[1750928977932,0.80653,2478.4,2478.3,78.58533]
[1750928978150,0.80652,2478.5,2478.4,0.80652]
[1750928978448,1.88485721,2478.5,2478.4,28.90951]
[1750928978634,2.01619,2478.6,2477.7,2.01688]
[1750928978937,4.01438,2478.3,2478.2,0.80657]
[1750928979236,4.28585167,2478.3,2478.1,8.711]
[1750928979439,1.88458248,2478.2,2478.1,36.778]
[1750928979638,1.07798248,2478.2,2478.1,0.80663]
[1750928979942,1.07798248,2478.2,2478.1,37.58463]
[1750928980143,1.07798248,2478.2,2478.1,37.56663]
[1750928980442,4.01439,2478.3,2478.2,0.8066]
[1750928980443,3.2078,2478.3,2478.2,0.8066]
[1750928980639,4.28564322,2478.3,2478.2,0.8066]
[1750928980836,3.2078,2478.7,2478.6,0.80645]
[1750928981136,0.80647,2478.6,2478.5,37.54147]
[1750928981331,1.88445273,2478.6,2478.5,37.54147]
[1750928981537,1.07798273,2478.6,2478.5,37.54147]
[1750928981738,1.88444273,2478.6,2478.5,0.8065]
[1750928981937,1.88444273,2478.6,2478.5,37.2025]
[1750928982138,1.88444273,2478.6,2478.5,9.2085]
[1750928982647,1.07798273,2478.6,2478.5,9.2085]
[1750928982839,3.2078,2478.7,2478.6,0.80646]
[1750928983243,4.01423,2478.7,2478.6,0.80646]
[1750928983544,3.2078,2478.7,2478.6,0.80646]
[1750928984145,4.01423,2478.7,2478.6,0.80646]
[1750928984346,3.2078,2478.7,2478.6,0.80646]
[1750928984547,4.01423,2478.7,2478.6,0.80646]
[1750928985146,4.01423,2478.7,2478.4,27.993]
[1750928985147,0.80652,2478.5,2478.4,0.8065]
[1750928985544,0.80652,2478.5,2478.4,37.1155]
[1750928985851,3.2078,2478.7,2478.6,0.80646]
[1750928986057,4.28762331,2478.7,2478.5,0.80647]
[1750928986352,1.07982331,2478.6,2478.5,0.80647]
[1750928987046,1.07982331,2478.6,2478.2,2.01645]
[1750928987247,0.80664,2478.1,2478.0,0.80662]
[1750928987451,1.08123242,2478.1,2477.9,8.402]
[1750928987655,0.80661,2478.2,2478.1,0.80663]
[1750928988046,1.88786151,2478.2,2478.1,0.80663]
[1750928988247,0.80666,2478.1,2478.0,0.80665]
[1750928988446,1.88791151,2478.1,2478.0,0.80665]
[1750928988655,1.08125151,2478.1,2478.0,0.80665]
[1750928988856,1.08212966,2478.3,2478.2,0.8066]
[1750928989155,1.88869083,2478.3,2478.2,0.8066]
[1750928989653,1.08213083,2478.3,2478.2,0.8066]
[1750928990155,1.88869083,2478.3,2478.2,0.8066]
[1750928991059,1.08213083,2478.3,2478.2,0.8066]
[1750928992556,3.2078,2478.4,2478.3,0.80656]
[1750928993159,4.29289905,2478.4,2478.3,0.80656]
[1750928993358,3.2078,2478.4,2478.3,0.80656]
[1750928994049,4.29351859,2478.4,2478.3,0.80656]
[1750928994465,4.29373369,2478.4,2478.3,0.80656]
[1750928994851,2.01641,2478.3,2477.6,2.01695]
[1750928995151,3.2078,2478.0,2477.9,0.80665]
[1750928995467,4.29373369,2478.0,2477.9,0.80665]
[1750928995857,3.2078,2478.3,2478.2,0.8066]
[1750928996052,4.29332716,2478.3,2478.2,0.8066]
[1750928996256,5.09988716,2478.3,2478.2,0.8066]
[1750928996456,0.8066,2478.2,2478.1,2.1572]
[1750928996661,1.08552716,2478.2,2478.0,8.403]
[1750928996861,5.22424,2478.3,2478.0,8.403]
[1750928996862,0.80663,2478.1,2478.0,8.403]
[1750928997256,0.80666,2478.0,2477.9,9.21067]
[1750928997558,0.80665,2478.1,2478.0,0.80663]
[1750928997867,2.01653,2478.2,2477.7,8.404]
[1750928998062,0.80676,2477.8,2477.7,0.80674]
[1750928998456,3.2078,2478.0,2477.6,10.42097]
[1750928998656,0.80672,2477.9,2477.8,0.8067]
[1750928998955,3.2078,2478.0,2477.9,0.80669]
[1750928999354,4.01446,2478.0,2477.9,0.80669]
[1750928999662,0.80672,2477.9,2477.8,0.8067]
[1750928999861,4.01449,2478.0,2477.9,0.80669]
[1750929000063,0.80673,2477.9,2477.8,0.80671]
[1750929000260,0.80671,2477.9,2477.8,0.80669]
[1750929000564,4.01448,2478.0,2477.9,0.80669]
[1750929001062,0.80681,2477.6,2477.5,0.80679]
[1750929001270,3.2078,2477.7,2477.0,0.6964]
[1750929001461,3.2078,2477.4,2477.3,0.80689]
[1750929001661,8.404,2478.2,2477.7,0.80676]
[1750929001662,3.2078,2477.8,2477.7,0.80676]
[1750929002269,3.2078,2477.8,2477.7,9.21076]
[1750929002860,0.80676,2477.7,2477.5,8.404]
[1750929003168,0.80684,2477.5,2477.4,0.80683]
[1750929003373,4.01461,2477.6,2477.5,0.8068]
[1750929003668,0.80685,2477.5,2477.4,0.80684]
[1750929003875,0.80691,2477.3,2477.2,0.80691]
[1750929004268,0.80692,2477.2,2477.1,0.80692]
[1750929004475,4.01471,2477.3,2477.2,0.80692]
[1750929004866,3.2078,2477.3,2477.2,0.80692]
[1750929005071,3.2078,2477.9,2477.8,0.80673]
[1750929005765,3.2078,2477.9,2477.8,2.13153]
[1750929006169,3.2078,2478.2,2478.1,0.80663]
[1750929006364,3.2078,2478.8,2478.3,2.01636]
[1750929006560,4.01422,2478.8,2478.7,0.80643]
[1750929006870,4.01423,2478.8,2478.7,0.80643]
[1750929007058,4.01423,2478.8,2478.5,8.405]
[1750929007059,3.2078,2478.8,2478.5,8.405]
[1750929007262,3.2078,2478.8,2478.7,0.80643]
[1750929007572,3.2078,2478.8,2478.6,9.8004]
[1750929007771,3.2078,2478.8,2478.6,8.405]
[1750929007971,3.2078,2478.8,2478.3,1.3954]
[1750929008173,4.01421,2478.8,2478.3,1.3954]
[1750929008477,3.2078,2478.8,2478.3,1.3954]
[1750929008668,0.8065,2478.5,2478.4,9.21152]
[1750929008868,0.80649,2478.6,2478.4,9.21152]
[1750929009174,0.8065,2478.5,2478.4,8.405]
[1750929009367,3.2078,2478.8,2478.4,8.405]
[1750929009565,0.80644,2478.7,2478.5,0.80647]
[1750929009765,3.2078,2478.8,2478.4,8.405]
[1750929009973,4.01423,2478.8,2478.7,0.80643]
[1750929010169,3.2078,2478.8,2478.7,0.80643]
[1750929010374,4.0142,2478.8,2478.7,0.80643]
[1750929011174,0.80647,2478.6,2478.3,1.443]
[1750929011379,0.80647,2478.6,2478.5,0.80649]
[1750929011576,0.80647,2478.6,2478.5,0.80648]
[1750929011877,0.80646,2478.7,2478.6,0.80646]
[1750929012070,4.01422,2478.8,2478.7,0.80643]
[1750929012270,4.0142,2478.8,2478.7,0.80643]
[1750929012465,0.80647,2478.6,2478.5,8.89249]
[1750929012671,3.2078,2478.8,2478.5,8.086]
[1750929012876,0.80651,2478.5,2478.4,8.086]
[1750929013269,0.80651,2478.5,2478.4,8.89253]
[1750929013468,4.6441,2478.8,2478.6,0.80644]
[1750929013668,3.2078,2478.8,2478.4,8.086]
[1750929013869,0.80644,2478.7,2478.6,0.80643]
[1750929014072,3.2078,2478.8,2478.5,0.80647]
[1750929014273,0.80647,2478.6,2478.5,0.80647]
[1750929014469,0.8065,2478.5,2478.4,8.89251]
[1750929014677,0.80656,2478.3,2478.2,3.2078]
[1750929014879,0.8066,2478.2,2478.1,8.8926]
[1750929015576,0.80658,2478.3,2478.2,0.80657]
[1750929015776,3.2078,2478.5,2478.1,8.086]
[1750929015977,3.2078,2478.5,2478.2,0.80657]
[1750929015978,0.80658,2478.3,2478.2,0.80657]
[1750929016176,2.01633,2478.4,2477.9,4.6305]
[1750929016380,3.2078,2478.2,2477.7,8.89274]
[1750929016578,0.80673,2477.8,2477.7,8.086]
[1750929017380,0.80673,2477.8,2477.7,10.31546]
[1750929017679,0.80671,2477.9,2477.8,0.8067]
[1750929017880,0.80671,2477.9,2477.8,2.2294]
[1750929018077,0.80671,2477.9,2477.6,3.8747]
[1750929018078,2.01666,2478.0,2477.6,3.2078]
[1750929018377,3.2078,2478.2,2477.3,3.2078]
[1750929018378,0.80686,2477.4,2477.3,3.2078]
[1750929018580,0.80689,2477.3,2477.2,8.087]
[1750929018780,8.2078,2477.6,2477.0,3.2078]
[1750929018975,0.80705,2476.8,2476.7,8.087]
[1750929019181,0.6553,2477.2,2476.9,0.807]
[1750929019378,0.6553,2477.2,2476.7,8.087]
[1750929019584,3.2078,2477.3,2477.2,0.80692]
[1750929019776,4.01469,2477.3,2477.1,0.80693]
[1750929019976,3.2078,2477.3,2477.0,0.80696]
[1750929020193,0.807,2477.0,2476.6,57.7798]
[1750929020386,0.807,2477.0,2476.9,0.80702]
[1750929020687,4.01472,2477.3,2477.2,0.80692]
[1750929020987,3.2078,2477.3,2477.2,0.80692]
[1750929021679,3.2078,2477.6,2477.1,1.4259]
[1750929021881,2.71279,2478.1,2477.1,1.4259]
[1750929021882,2.01627,2478.5,2477.4,5.22489]
[1750929022086,3.2078,2478.3,2477.8,3.2078]
[1750929022279,1.04070204,2478.2,2478.0,0.80665]
[1750929022480,0.80663,2478.2,2477.9,1.4259]
[1750929022677,0.80663,2478.2,2478.0,0.80666]
[1750929022882,3.2078,2478.3,2477.9,2.23257]
[1750929023082,0.80666,2478.0,2477.9,2.23257]
[1750929023278,2.0166,2478.1,2477.8,8.088]
[1750929023588,2.01674,2477.9,2477.3,1.4259]
[1750929023791,0.80686,2477.4,2477.3,2.23278]
[1750929023984,0.80689,2477.3,2477.2,12.10271]
[1750929024593,0.80683,2477.5,2477.4,0.80682]
[1750929025088,3.904,2478.0,2477.2,11.2958]
[1750929025280,0.80676,2477.8,2477.7,0.80675]
[1750929025480,0.80676,2477.7,2477.6,0.80677]
[1750929025681,0.80674,2477.8,2477.7,0.80674]
[1750929025986,0.80686,2477.5,2477.4,0.80685]
[1750929026191,0.80684,2477.5,2477.4,0.80683]
[1750929026490,0.80678,2477.7,2477.6,0.80678]
[1750929026686,3.2078,2478.0,2477.3,2.0172]
[1750929026882,3.2078,2478.0,2477.5,2.01707]
[1750929027090,3.2078,2478.0,2477.9,0.80669]
[1750929027387,0.6514,2478.4,2478.2,0.8066]
[1750929027388,3.2078,2478.3,2478.2,0.8066]
[1750929028089,3.2078,2478.3,2478.2,8.8946]
[1750929028587,0.8066,2478.2,2478.1,1.4349]
[1750929028784,4.01439,2478.3,2478.2,0.8066]
[1750929029489,4.01436,2478.3,2478.2,0.8066]
[1750929029689,3.2078,2478.3,2478.2,0.8066]
[1750929031094,4.01428,2478.6,2478.5,0.8065]
[1750929031395,5.054647,2478.6,2478.5,0.8065]
[1750929031588,4.248167,2478.6,2478.5,0.8065]
[1750929031790,3.2078,2478.9,2478.5,0.8065]
[1750929031995,2.01609,2478.7,2478.2,0.80657]
[1750929032196,0.80656,2478.4,2478.3,0.80655]
[1750929032391,0.80652,2478.5,2478.4,0.80652]
[1750929032697,0.80653,2478.4,2478.3,2.20144]
[1750929032996,0.80653,2478.4,2478.3,2.20146]
[1750929033195,0.80653,2478.4,2478.3,1.3949]
[1750929033396,0.8066,2478.2,2478.1,0.80659]
[1750929033599,0.80659,2478.3,2478.2,0.80657]
[1750929034796,0.80652,2478.5,2478.4,0.8065]
[1750929034989,4.01428,2478.6,2478.5,0.8065]
[1750929035411,3.2078,2478.6,2478.5,0.8065]
[1750929036399,0.80646,2478.7,2478.6,0.80645]
[1750929036797,1.84604227,2478.7,2478.6,0.80645]
[1750929037304,0.80646,2478.7,2478.6,0.80645]
[1750929037799,0.80643,2478.8,2478.7,0.8064]
[1750929038101,1.84625376,2478.8,2478.7,0.8064]
[1750929038598,0.80647,2478.7,2478.6,0.80645]
[1750929038800,0.80642,2478.8,2478.7,0.8064]
[1750929038995,1.84613752,2478.8,2478.7,0.8064]
[1750929039900,1.03971752,2478.8,2478.7,0.8064]
[1750929040100,1.84611752,2478.8,2478.7,0.8064]
[1750929040302,0.8064,2478.8,2478.7,0.8064]
[1750929040493,1.03987069,2478.8,2478.7,0.8064]
[1750929040694,3.2078,2478.9,2478.8,0.8064]
[1750929042098,4.01417,2478.9,2478.8,0.8064]
[1750929042591,3.2078,2478.9,2478.8,0.8064]
[1750929043002,4.01417,2478.9,2478.8,0.8064]
[1750929043502,4.01419,2478.9,2478.8,0.8064]
[1750929043700,4.01419,2478.9,2478.8,8.5884]
[1750929044103,3.2078,2478.9,2478.8,8.5884]
[1750929045709,4.01419,2478.9,2478.4,10.51555]
[1750929045908,0.8064,2478.8,2478.7,0.80641]
[1750929046199,0.8064,2478.8,2478.6,0.80644]
[1750929046798,4.01418,2478.9,2478.8,0.8064]
[1750929046997,3.2078,2478.9,2478.4,7.781]
[1750929047199,0.80645,2478.7,2478.6,0.80644]
[1750929047501,0.6822,2478.8,2478.7,0.80643]
[1750929047701,1.4886,2478.8,2478.7,0.80643]
[1750929048201,0.6822,2478.8,2478.7,0.80643]
[1750929048903,3.2078,2478.9,2478.5,11.16694]
[1750929048904,3.2078,2478.9,2478.8,0.8064]
[1750929049499,4.01417,2478.9,2478.8,0.8064]
[1750929049700,3.2078,2478.9,2478.7,0.80641]
[1750929049901,3.2078,2478.9,2478.6,0.80647]
[1750929050199,0.80642,2478.8,2478.7,0.80642]
[1750929050507,0.80644,2478.7,2478.6,0.80644]
[1750929050703,0.80643,2478.8,2478.7,0.80643]
[1750929050895,0.80644,2478.7,2478.6,8.58744]
[1750929051203,0.80642,2478.8,2478.7,0.80642]
[1750929051805,3.2078,2478.9,2478.5,3.38595]
[1750929052099,3.2078,2478.9,2478.3,2.71709]
[1750929052302,0.80646,2478.7,2478.6,0.80645]
[1750929052697,0.80648,2478.6,2478.5,0.80648]
[1750929053103,0.80648,2478.6,2478.5,8.58748]
[1750929054306,1.04067751,2478.6,2478.5,8.58748]
[1750929054505,1.84714751,2478.6,2478.5,0.80648]
[1750929054904,2.01625,2478.5,2477.8,0.8067]
[1750929055104,3.2078,2478.1,2477.5,56.29206]
[1750929055304,1.04057326,2478.0,2477.9,0.80669]
[1750929055612,0.80655,2478.4,2478.3,0.80656]
[1750929056006,1.84746023,2478.4,2478.3,0.80656]
[1750929056206,1.04091023,2478.4,2478.0,1.3059]
[1750929056404,0.80663,2478.1,2478.0,2.11254]
[1750929056700,1.84754023,2478.1,2478.0,8.58866]
[1750929057107,1.84754023,2478.1,2478.0,0.80666]
[1750929057307,0.80666,2478.0,2477.9,0.80667]
[1750929057509,1.04091023,2478.0,2477.5,48.511]
[1750929057714,0.80673,2477.8,2477.7,0.80674]
[1750929058011,0.80673,2477.8,2477.7,8.58875]
[1750929058206,0.80673,2477.8,2477.7,0.80673]
[1750929058409,3.06608951,2477.9,2477.5,55.08282]
[1750929058608,0.80678,2477.7,2477.6,0.80679]
[1750929058907,1.04934951,2477.7,2477.6,0.80679]
[1750929059114,1.85610951,2477.7,2477.6,0.80679]
[1750929059306,0.80676,2477.7,2477.6,0.80679]
[1750929059612,0.80677,2477.7,2477.6,0.80677]
[1750929060310,0.80679,2477.6,2477.5,54.276]
[1750929060509,0.80679,2477.7,2477.6,0.80677]
[1750929060710,0.80679,2477.6,2477.5,55.0828]
[1750929060911,0.80677,2477.7,2477.6,0.80679]
[1750929061311,1.85601602,2477.7,2477.6,0.80679]
[1750929061611,0.80677,2477.7,2477.6,0.80679]
[1750929061813,0.80675,2477.8,2477.7,0.80674]
[1750929062011,1.04879695,2477.8,2477.7,0.80674]
[1750929062415,3.2078,2478.0,2477.9,0.80669]
[1750929062618,4.25629526,2478.0,2477.9,0.80669]
[1750929063113,3.2078,2478.0,2477.9,0.80669]
[1750929063315,3.2078,2478.0,2477.9,8.58969]
[1750929064220,3.2078,2478.0,2477.9,9.30229]
[1750929065523,3.2078,2478.3,2478.0,0.80666]
[1750929065723,3.2078,2478.3,2478.2,0.8066]
[1750929066832,3.2078,2478.6,2478.4,2.01628]
[1750929067028,3.2078,2478.6,2478.5,2.1313]
[1750929067229,0.6654,2478.8,2478.7,0.80643]
[1750929067431,1.71458955,2478.8,2478.7,0.80643]
[1750929068330,3.2078,2479.0,2478.9,0.80637]
[1750929068925,3.8997,2479.4,2479.3,0.80624]
[1750929069244,4.9491922,2479.4,2479.3,0.80624]
[1750929069736,3.2078,2479.4,2479.3,0.80624]
[1750929070933,3.2078,2479.4,2479.3,2.10974]
[1750929072634,3.2078,2479.4,2479.3,9.63174]
[1750929073332,3.2078,2479.4,2479.3,2.10974]
[1750929073527,3.2078,2479.4,2479.3,9.63174]
[1750929074831,8.45886448,2479.4,2478.7,3.9009]
[1750929075026,0.80632,2479.1,2479.0,0.80634]
[1750929075226,0.80635,2479.0,2478.8,1.4263]
[1750929075531,0.80637,2478.9,2478.8,0.80639]
[1750929076832,3.2078,2479.0,2478.5,1.4263]
[1750929077043,0.80657,2478.3,2478.2,0.80657]
[1750929077333,4.01437,2478.3,2478.2,0.80658]
[1750929077732,3.2078,2478.3,2478.2,0.80658]
[1750929077933,4.01438,2478.3,2478.1,8.32861]
[1750929078134,0.8066,2478.2,2478.1,7.522]
[1750929078336,3.2078,2478.3,2477.9,1.3592]
[1750929078534,3.2078,2478.3,2477.6,5.22476]
[1750929078535,3.2078,2478.0,2477.6,0.80678]
[1750929078836,0.80679,2477.6,2477.4,8.32884]
[1750929079040,0.80682,2477.5,2477.4,8.32884]
[1750929079336,3.2078,2477.7,2477.4,7.522]
[1750929079539,3.2078,2477.7,2477.2,1.3592]
[1750929079836,3.2078,2477.4,2477.3,0.80689]
[1750929081238,4.01468,2477.4,2477.2,1.3592]
[1750929081437,3.2078,2477.4,2477.3,0.80689]
[1750929081637,3.2078,2477.4,2477.2,1.3592]
[1750929081835,3.2078,2477.4,2477.0,7.523]
[1750929082032,0.80693,2477.2,2477.0,8.32996]
[1750929082337,3.2078,2477.1,2476.8,1.3195]
[1750929082541,0.80699,2477.0,2476.8,0.80703]
[1750929082839,3.2078,2477.1,2477.0,0.80699]
[1750929083841,3.2078,2477.1,2477.0,8.33099]
[1750929084338,0.713,2477.7,2477.4,0.80686]
[1750929084339,3.2078,2477.5,2477.4,0.80686]
[1750929084543,0.713,2477.7,2477.6,0.80679]
[1750929085341,3.9298,2477.9,2477.8,0.80673]
[1750929085540,3.2078,2477.9,2477.8,0.80673]
[1750929088940,0.6866,2478.4,2478.3,0.80656]
[1750929089244,3.9166,2478.5,2478.4,0.80653]
[1750929089447,4.95749932,2478.5,2478.4,0.80653]
[1750929089644,3.9166,2478.5,2478.4,0.80653]
[1750929090037,3.2078,2478.5,2478.4,0.80653]
[1750929091537,3.2078,2478.8,2478.4,1.3724]
[1750929091838,3.2078,2479.1,2479.0,0.80634]
[1750929093835,3.2078,2479.1,2479.0,2.17874]
[1750929094237,4.605,2479.5,2479.4,0.80621]
[1750929094432,3.9062,2479.5,2479.4,0.80621]
[1750929094644,3.2078,2479.5,2479.4,0.80621]
[1750929095033,3.2078,2479.5,2479.4,8.33021]
[1750929096742,3.2078,2479.5,2479.3,1.3012]
[1750929096743,3.2078,2479.5,2478.9,3.2078]
[1750929097047,0.80633,2479.1,2479.0,0.80634]
[1750929097244,0.80634,2479.0,2478.9,0.80635]
[1750929097939,0.80639,2478.9,2478.8,0.80637]
[1750929098142,0.80643,2478.8,2478.7,8.32941]
[1750929098841,0.8064,2478.8,2478.7,7.523]
[1750929099042,0.8064,2478.8,2478.7,0.80642]
[1750929100343,4.01419,2478.9,2478.8,0.8064]
[1750929100538,4.01419,2478.9,2478.7,0.80642]
[1750929100539,0.80644,2478.8,2478.7,0.80642]
[1750929101051,3.2078,2478.9,2478.8,0.8064]
[1750929101343,4.01417,2478.9,2478.8,0.8064]
[1750929101950,0.80644,2478.8,2478.7,0.8064]
[1750929102151,4.01419,2478.9,2478.8,0.8064]
[1750929102647,3.2078,2478.9,2478.8,0.8064]
[1750929103547,3.2078,2478.9,2478.8,2.2012]
[1750929103852,3.2078,2478.9,2478.8,9.5232]
[1750929104045,3.2078,2478.9,2478.8,2.2012]
[1750929104350,3.2078,2478.9,2478.8,9.5232]
[1750929104952,4.01417,2478.9,2478.8,9.5232]
[1750929105150,4.01417,2478.9,2478.8,2.2012]
[1750929105654,3.2078,2478.9,2478.8,2.2012]
[1750929106554,3.2078,2479.2,2479.1,0.8063]
[1750929107352,3.2078,2479.2,2479.0,1.3196]
[1750929107555,0.80632,2479.1,2479.0,0.8063]
[1750929107855,3.2078,2479.2,2479.1,0.8063]
[1750929108155,0.8063,2479.1,2479.0,2.12592]
[1750929108755,4.0141,2479.2,2479.1,0.8063]
[1750929109454,0.8063,2479.1,2479.0,2.12592]
[1750929109758,3.2078,2479.2,2478.9,7.321]
[1750929109759,0.80634,2479.0,2478.9,7.321]
[1750929110159,2.01593,2479.0,2478.5,1.3464]
[1750929110456,0.80647,2478.7,2478.6,0.80643]
[1750929112160,5.22377,2478.9,2478.5,8.6674]
[1750929112161,3.2078,2478.9,2478.5,2.01623]
[1750929112355,0.6838,2479.1,2478.7,2.01609]
[1750929112659,4.01409,2479.2,2479.1,0.8063]
[1750929113460,3.2078,2479.2,2479.1,0.8063]
[1750929114363,4.25190296,2479.2,2479.0,0.8063]
[1750929114661,3.2078,2479.2,2479.1,0.8063]
[1750929114860,4.25185243,2479.2,2479.1,0.8063]
[1750929116360,5.05814243,2479.2,2479.1,0.8063]
[1750929117266,5.05812243,2479.2,2479.1,0.8063]
[1750929117566,4.25185243,2479.2,2479.1,0.8063]
[1750929117766,5.05812243,2479.2,2479.1,0.8063]
[1750929118065,4.25185243,2479.2,2479.1,0.8063]
[1750929118862,3.2078,2479.2,2479.1,0.8063]
[1750929119367,4.25966881,2479.2,2479.1,0.8063]
[1750929120572,1.05186881,2479.2,2479.1,0.8063]
[1750929120884,1.85813881,2479.2,2479.1,0.8063]
[1750929122275,0.8063,2479.1,2479.0,0.8063]
[1750929122470,0.80643,2478.8,2478.7,0.8064]
[1750929122867,1.85829881,2478.8,2478.7,0.8064]
[1750929123471,0.80647,2478.7,2478.6,0.80644]
[1750929123671,3.9135,2478.9,2478.8,0.8064]
[1750929123872,4.25940452,2478.9,2478.8,0.8064]
[1750929124068,5.06577452,2478.9,2478.8,0.8064]
[1750929124576,0.80643,2478.8,2478.7,0.80641]
[1750929124767,1.85803452,2478.8,2478.7,0.80641]
[1750929125369,1.05160452,2478.8,2478.7,0.80641]
[1750929125771,1.85800452,2478.8,2478.7,0.80641]
[1750929126580,1.85828424,2478.8,2478.7,0.80641]
[1750929126877,1.85828424,2478.8,2478.6,1.439]
[1750929126878,0.80643,2478.7,2478.6,0.80644]
[1750929127065,1.85831424,2478.7,2478.6,0.80644]
[1750929127867,1.05188424,2478.7,2478.6,0.80644]
[1750929128180,1.05196698,2478.8,2478.7,0.80643]
[1750929128375,3.2078,2478.9,2478.8,0.8064]
[1750929128576,4.25974132,2478.9,2478.8,0.8064]
[1750929129484,4.25974132,2478.9,2478.6,2.01617]
[1750929129485,4.25974132,2478.9,2478.5,7.32]
[1750929129784,0.80646,2478.7,2478.6,0.80644]
[1750929130085,1.85840132,2478.7,2478.6,0.80644]
[1750929130289,0.80647,2478.6,2478.5,8.12648]
[1750929130582,1.85841132,2478.6,2478.5,8.12648]
[1750929130782,3.2078,2478.9,2478.5,7.32]
[1750929131084,3.2078,2478.9,2478.8,0.8064]
[1750929131282,1.05234226,2478.9,2478.8,0.8064]
[1750929131478,3.2078,2479.2,2479.1,0.8063]
[1750929131677,4.26029236,2479.2,2479.1,0.8063]
[1750929132279,5.06656236,2479.2,2479.1,0.8063]
[1750929132681,0.80634,2479.1,2479.0,0.80632]
[1750929132887,1.85883236,2479.1,2479.0,0.80632]
[1750929133685,1.05249236,2479.1,2479.0,0.80632]
[1750929134587,1.85879236,2479.1,2479.0,0.80632]
[1750929134788,0.80634,2479.0,2478.9,7.98334]
[1750929134981,1.05249236,2479.0,2478.2,3.8931]
[1750929135182,0.80652,2478.6,2478.5,0.80647]
[1750929135382,1.05249236,2478.6,2478.3,10.53878]
[1750929135591,1.05249236,2478.5,2478.4,0.80653]